[Event "Titled Tuesday Blitz June 1 2021"]
[White "Supi, Luis Paulo"]
[Black "Golubev, Mikhail"]
[WhiteFideId "2106388"]
[BlackFideId "14100983"]
[WhiteElo "2369"]
[BlackElo "2374"]
[Result "1-0"]
[Round "10"]
[TimeControl "180+1"]
[Date "2021.06.01"]
[WhiteClock "0:01:25"]
[BlackClock "0:00:04"]

1. d4 {[%clk 0:03:00]}  Nf6 {[%clk 0:02:59]} 2. c4 {[%clk 0:03:01]}  g6 {[%clk 0:02:58]} 3. g3 {[%clk 0:03:01]}  Bg7 {[%clk 0:02:58]} 4. Bg2 {[%clk 0:03:01]}  O-O {[%clk 0:02:58]} 5. Nc3 {[%clk 0:03:02]}  d6 {[%clk 0:02:59]} 6. Nf3 {[%clk 0:03:02]}  Nbd7 {[%clk 0:02:59]} 7. O-O {[%clk 0:03:02]}  e5 {[%clk 0:02:59]} 8. e4 {[%clk 0:03:03]}  Re8 {[%clk 0:03:00]} 9. d5 {[%clk 0:03:03]}  Nc5 {[%clk 0:02:56]} 10. Ne1 {[%clk 0:03:03]}  a5 {[%clk 0:02:54]} 11. Nd3 {[%clk 0:03:02]}  b6 {[%clk 0:02:46]} 12. Rb1 {[%clk 0:02:58]}  Nfd7 {[%clk 0:02:40]} 13. b3 {[%clk 0:02:59]}  Rf8 {[%clk 0:02:32]} 14. Be3 {[%clk 0:02:57]}  Nxd3 {[%clk 0:02:32]} 15. Qxd3 {[%clk 0:02:57]}  Nc5 {[%clk 0:02:27]} 16. Qd2 {[%clk 0:02:57]}  f5 {[%clk 0:02:25]} 17. exf5 {[%clk 0:02:44]}  gxf5 {[%clk 0:01:58]} 18. f4 {[%clk 0:02:36]}  Bd7 {[%clk 0:01:58]} 19. fxe5 {[%clk 0:02:33]}  dxe5 {[%clk 0:01:58]} 20. d6 {[%clk 0:02:33]}  c6 {[%clk 0:01:52]} 21. Bxc5 {[%clk 0:02:34]}  bxc5 {[%clk 0:01:53]} 22. Na4 {[%clk 0:02:35]}  Rf6 {[%clk 0:01:17]} 23. Kh1 {[%clk 0:02:19]}  Bf8 {[%clk 0:01:10]} 24. Nxc5 {[%clk 0:02:18]}  Rxd6 {[%clk 0:00:47]} 25. Qe2 {[%clk 0:02:18]}  Qe7 {[%clk 0:00:30]} 26. Nxd7 {[%clk 0:02:16]}  Qxd7 {[%clk 0:00:30]} 27. Qxe5 {[%clk 0:02:16]}  Re8 {[%clk 0:00:25]} 28. Qxf5 {[%clk 0:02:11]}  Qxf5 {[%clk 0:00:24]} 29. Rxf5 {[%clk 0:02:12]}  Re2 {[%clk 0:00:23]} 30. Rbf1 {[%clk 0:02:12]}  Be7 {[%clk 0:00:16]} 31. R5f2 {[%clk 0:02:11]}  Rdd2 {[%clk 0:00:16]} 32. Rxe2 {[%clk 0:02:10]}  Rxe2 {[%clk 0:00:16]} 33. Bxc6 {[%clk 0:02:11]}  Rxa2 {[%clk 0:00:15]} 34. Bd5+ {[%clk 0:02:11]}  Kh8 {[%clk 0:00:15]} 35. Rf7 {[%clk 0:01:35]}  Bb4 {[%clk 0:00:14]} 36. Be4 {[%clk 0:01:35]}  Rb2 {[%clk 0:00:14]} 37. Rxh7+ {[%clk 0:01:29]}  Kg8 {[%clk 0:00:13]} 38. Ra7 {[%clk 0:01:30]}  Rxb3 {[%clk 0:00:13]} 39. Kg2 {[%clk 0:01:29]}  Re3 {[%clk 0:00:12]} 40. Bd5+ {[%clk 0:01:29]}  Kf8 {[%clk 0:00:11]} 41. h4 {[%clk 0:01:28]}  Re2+ {[%clk 0:00:09]} 42. Kf3 {[%clk 0:01:28]}  Rh2 {[%clk 0:00:09]} 43. Kg4 {[%clk 0:01:26]}  Bc3 {[%clk 0:00:05]} 44. h5 {[%clk 0:01:26]}  Ra2 {[%clk 0:00:05]} 45. c5 {[%clk 0:01:26]}  Bd4 {[%clk 0:00:04]} 46. Bxa2 {[%clk 0:01:25]} 1-0


[Site "https://www.chess.com"]

[Event "Titled Tuesday Blitz June 1 2021"]
[White "Tanenbaum, Zachary"]
[Black "Karttunen, Mika"]
[WhiteFideId "2060850"]
[BlackFideId "502081"]
[WhiteElo "2165"]
[BlackElo "2343"]
[Result "1/2-1/2"]
[Round "10"]
[TimeControl "180+1"]
[Date "2021.06.01"]
[WhiteClock "0:00:17"]
[BlackClock "0:00:32"]

1. e4 {[%clk 0:03:00]}  c5 {[%clk 0:02:57]} 2. Nf3 {[%clk 0:03:00]}  d6 {[%clk 0:02:57]} 3. d4 {[%clk 0:03:00]}  cxd4 {[%clk 0:02:56]} 4. Nxd4 {[%clk 0:03:01]}  Nf6 {[%clk 0:02:56]} 5. Nc3 {[%clk 0:03:01]}  a6 {[%clk 0:02:57]} 6. Be3 {[%clk 0:03:01]}  e5 {[%clk 0:02:56]} 7. Nb3 {[%clk 0:03:01]}  Be6 {[%clk 0:02:53]} 8. h3 {[%clk 0:03:02]}  Nbd7 {[%clk 0:02:49]} 9. g4 {[%clk 0:03:01]}  h6 {[%clk 0:02:48]} 10. Qd2 {[%clk 0:03:01]}  Rc8 {[%clk 0:02:44]} 11. O-O-O {[%clk 0:03:01]}  Be7 {[%clk 0:02:40]} 12. Bg2 {[%clk 0:03:00]}  Nb6 {[%clk 0:02:32]} 13. Nd5 {[%clk 0:02:35]}  Bxd5 {[%clk 0:02:22]} 14. exd5 {[%clk 0:02:36]}  Nc4 {[%clk 0:02:22]} 15. Qd3 {[%clk 0:02:35]}  Nd7 {[%clk 0:02:11]} 16. Kb1 {[%clk 0:02:33]}  Bg5 {[%clk 0:02:02]} 17. f4 {[%clk 0:02:27]}  Nxe3 {[%clk 0:01:54]} 18. Qxe3 {[%clk 0:02:23]}  Bxf4 {[%clk 0:01:54]} 19. Qd3 {[%clk 0:02:21]}  O-O {[%clk 0:01:45]} 20. h4 {[%clk 0:02:16]}  g6 {[%clk 0:01:20]} 21. h5 {[%clk 0:01:56]}  g5 {[%clk 0:01:11]} 22. Be4 {[%clk 0:01:46]}  Nf6 {[%clk 0:01:06]} 23. Bf5 {[%clk 0:01:45]}  Rc7 {[%clk 0:01:03]} 24. Nc1 {[%clk 0:01:32]}  Re7 {[%clk 0:01:02]} 25. Ne2 {[%clk 0:01:27]}  Qc7 {[%clk 0:01:01]} 26. Nc3 {[%clk 0:01:26]}  b5 {[%clk 0:00:58]} 27. Ne4 {[%clk 0:01:23]}  Nxe4 {[%clk 0:00:55]} 28. Qxe4 {[%clk 0:01:22]}  Qc4 {[%clk 0:00:53]} 29. Rh3 {[%clk 0:01:12]}  Qxe4 {[%clk 0:00:53]} 30. Bxe4 {[%clk 0:01:13]}  Rc8 {[%clk 0:00:51]} 31. Rb3 {[%clk 0:01:10]}  Rc4 {[%clk 0:00:50]} 32. Re1 {[%clk 0:01:05]}  Rec7 {[%clk 0:00:49]} 33. a3 {[%clk 0:00:49]}  Kg7 {[%clk 0:00:49]} 34. Re2 {[%clk 0:00:46]}  Rd4 {[%clk 0:00:49]} 35. Rd3 {[%clk 0:00:43]}  Rcc4 {[%clk 0:00:48]} 36. Rxd4 {[%clk 0:00:36]}  exd4 {[%clk 0:00:48]} 37. Bd3 {[%clk 0:00:21]}  Rc5 {[%clk 0:00:48]} 38. Re7 {[%clk 0:00:21]}  Rxd5 {[%clk 0:00:47]} 39. Bg6 {[%clk 0:00:20]}  Re5 {[%clk 0:00:38]} 40. Rxf7+ {[%clk 0:00:20]}  Kg8 {[%clk 0:00:38]} 41. Rh7 {[%clk 0:00:18]}  Re7 {[%clk 0:00:32]} 42. Rxe7 {[%clk 0:00:17]} 1/2-1/2


[Site "https://www.chess.com"]

[Event "Titled Tuesday Blitz June 1 2021"]
[White "Terry, Renato"]
[Black "Nguyen, Van Huy"]
[WhiteFideId "3803457"]
[BlackFideId "12401064"]
[WhiteElo "2581"]
[BlackElo "2443"]
[Result "1-0"]
[Round "10"]
[TimeControl "180+1"]
[Date "2021.06.01"]
[WhiteClock "0:00:13"]
[BlackClock "0:00:38"]

1. d4 {[%clk 0:02:38]}  Nf6 {[%clk 0:02:59]} 2. Bg5 {[%clk 0:02:37]}  Ne4 {[%clk 0:02:58]} 3. Bf4 {[%clk 0:02:37]}  c5 {[%clk 0:02:58]} 4. f3 {[%clk 0:02:37]}  Qa5+ {[%clk 0:02:58]} 5. c3 {[%clk 0:02:37]}  Nf6 {[%clk 0:02:59]} 6. d5 {[%clk 0:02:37]}  e6 {[%clk 0:02:58]} 7. e4 {[%clk 0:02:36]}  exd5 {[%clk 0:02:55]} 8. e5 {[%clk 0:02:35]}  Ng8 {[%clk 0:02:42]} 9. Qxd5 {[%clk 0:02:35]}  Ne7 {[%clk 0:02:39]} 10. Qb3 {[%clk 0:02:27]}  Ng6 {[%clk 0:02:35]} 11. Bg3 {[%clk 0:02:27]}  Be7 {[%clk 0:02:28]} 12. Nd2 {[%clk 0:02:23]}  O-O {[%clk 0:02:27]} 13. Nc4 {[%clk 0:02:21]}  Qd8 {[%clk 0:02:21]} 14. O-O-O {[%clk 0:02:17]}  Nc6 {[%clk 0:02:17]} 15. f4 {[%clk 0:02:14]}  d5 {[%clk 0:02:09]} 16. exd6 {[%clk 0:02:06]}  Bf6 {[%clk 0:02:09]} 17. Nf3 {[%clk 0:02:04]}  Be6 {[%clk 0:02:08]} 18. Qxb7 {[%clk 0:02:03]}  Na5 {[%clk 0:02:00]} 19. Nxa5 {[%clk 0:02:02]}  Qxa5 {[%clk 0:02:00]} 20. Qa6 {[%clk 0:02:02]}  Bxc3 {[%clk 0:01:45]} 21. Qxa5 {[%clk 0:02:02]}  Bxa5 {[%clk 0:01:45]} 22. Ba6 {[%clk 0:01:24]}  Rfd8 {[%clk 0:01:28]} 23. Ne5 {[%clk 0:01:09]}  Bxa2 {[%clk 0:01:20]} 24. Nc6 {[%clk 0:01:08]}  Bb6 {[%clk 0:01:12]} 25. Nxd8 {[%clk 0:01:08]}  Rxd8 {[%clk 0:01:12]} 26. f5 {[%clk 0:01:03]}  Nf8 {[%clk 0:01:11]} 27. Bb5 {[%clk 0:00:54]}  c4 {[%clk 0:01:06]} 28. d7 {[%clk 0:00:47]}  Be3+ {[%clk 0:01:04]} 29. Kc2 {[%clk 0:00:47]}  Bb3+ {[%clk 0:01:04]} 30. Kc3 {[%clk 0:00:48]}  Bb6 {[%clk 0:00:56]} 31. Kb4 {[%clk 0:00:38]}  a5+ {[%clk 0:00:51]} 32. Kc3 {[%clk 0:00:38]}  Bc5 {[%clk 0:00:52]} 33. Bc7 {[%clk 0:00:20]}  Bb4+ {[%clk 0:00:52]} 34. Kd4 {[%clk 0:00:21]}  Rxd7+ {[%clk 0:00:51]} 35. Bxd7 {[%clk 0:00:21]}  Nxd7 {[%clk 0:00:52]} 36. Rde1 {[%clk 0:00:16]}  Bc5+ {[%clk 0:00:43]} 37. Kd5 {[%clk 0:00:17]}  c3+ {[%clk 0:00:43]} 38. Kc6 {[%clk 0:00:17]}  cxb2 {[%clk 0:00:37]} 39. Kxd7 {[%clk 0:00:15]}  a4 {[%clk 0:00:37]} 40. Re8+ {[%clk 0:00:12]}  Bf8 {[%clk 0:00:38]} 41. Bd6 {[%clk 0:00:12]}  h5 {[%clk 0:00:38]} 42. Rxf8+ {[%clk 0:00:13]} 1-0


[Site "https://www.chess.com"]

[Event "Titled Tuesday Blitz June 1 2021"]
[White "Thejkumar, M. S."]
[Black "Iskusnyh, Sergei"]
[WhiteFideId "5009154"]
[BlackFideId "4120027"]
[WhiteElo "2312"]
[BlackElo "2492"]
[Result "1-0"]
[Round "10"]
[TimeControl "180+1"]
[Date "2021.06.01"]
[WhiteClock "0:00:45"]
[BlackClock "0:00:01"]

1. d4 {[%clk 0:03:00]}  d5 {[%clk 0:02:59]} 2. c4 {[%clk 0:03:00]}  e6 {[%clk 0:02:58]} 3. Nf3 {[%clk 0:02:59]}  dxc4 {[%clk 0:02:57]} 4. e3 {[%clk 0:02:56]}  a6 {[%clk 0:02:53]} 5. Bxc4 {[%clk 0:02:55]}  b5 {[%clk 0:02:51]} 6. Bd3 {[%clk 0:02:54]}  Bb7 {[%clk 0:02:50]} 7. O-O {[%clk 0:02:51]}  Nf6 {[%clk 0:02:46]} 8. Qe2 {[%clk 0:02:47]}  c5 {[%clk 0:02:35]} 9. a4 {[%clk 0:02:45]}  b4 {[%clk 0:02:28]} 10. Rd1 {[%clk 0:02:43]}  Nbd7 {[%clk 0:02:25]} 11. Nbd2 {[%clk 0:02:43]}  Be7 {[%clk 0:02:21]} 12. a5 {[%clk 0:02:41]}  O-O {[%clk 0:02:19]} 13. Nc4 {[%clk 0:02:41]}  Qc7 {[%clk 0:02:14]} 14. Bd2 {[%clk 0:02:38]}  cxd4 {[%clk 0:01:58]} 15. exd4 {[%clk 0:02:36]}  Bd5 {[%clk 0:01:52]} 16. Nfe5 {[%clk 0:02:30]}  Qb7 {[%clk 0:01:50]} 17. f3 {[%clk 0:02:27]}  Nxe5 {[%clk 0:01:46]} 18. dxe5 {[%clk 0:02:21]}  Nd7 {[%clk 0:01:46]} 19. Kh1 {[%clk 0:02:09]}  Rfc8 {[%clk 0:01:42]} 20. Ne3 {[%clk 0:02:05]}  Nc5 {[%clk 0:01:21]} 21. Nxd5 {[%clk 0:02:00]}  exd5 {[%clk 0:01:21]} 22. Bf5 {[%clk 0:01:57]}  Re8 {[%clk 0:01:19]} 23. Be3 {[%clk 0:01:49]}  Rad8 {[%clk 0:01:10]} 24. Qf2 {[%clk 0:01:39]}  Nb3 {[%clk 0:00:53]} 25. Rab1 {[%clk 0:01:39]}  Bf8 {[%clk 0:00:51]} 26. Bb6 {[%clk 0:01:36]}  Rb8 {[%clk 0:00:44]} 27. Qe3 {[%clk 0:01:29]}  g6 {[%clk 0:00:22]} 28. Bc2 {[%clk 0:01:27]}  Bg7 {[%clk 0:00:21]} 29. Bxb3 {[%clk 0:01:26]}  Rxe5 {[%clk 0:00:22]} 30. Qf4 {[%clk 0:01:21]}  Rbe8 {[%clk 0:00:21]} 31. h3 {[%clk 0:01:15]}  h5 {[%clk 0:00:20]} 32. Rbc1 {[%clk 0:01:12]}  Qb8 {[%clk 0:00:19]} 33. Rc7 {[%clk 0:01:10]}  R8e7 {[%clk 0:00:17]} 34. Rxe7 {[%clk 0:01:06]}  Re1+ {[%clk 0:00:16]} 35. Rdxe1 {[%clk 0:01:05]}  Qxf4 {[%clk 0:00:17]} 36. Bxd5 {[%clk 0:01:04]}  Qg3 {[%clk 0:00:14]} 37. Bc7 {[%clk 0:00:56]}  Qh4 {[%clk 0:00:10]} 38. R1e4 {[%clk 0:00:54]}  Qf2 {[%clk 0:00:08]} 39. Rxf7 {[%clk 0:00:53]}  Qxb2 {[%clk 0:00:05]} 40. Rd7+ {[%clk 0:00:49]}  Kh8 {[%clk 0:00:01]} 41. Re8+ {[%clk 0:00:47]}  Kh7 {[%clk 0:00:01]} 42. Bg8+ {[%clk 0:00:45]} 1-0


[Site "https://www.chess.com"]

[Event "Titled Tuesday Blitz June 1 2021"]
[White "Triapishko, Alexandr"]
[Black "Andreikin, Dmitry"]
[WhiteFideId "14122286"]
[BlackFideId "4158814"]
[WhiteElo "2490"]
[BlackElo "2782"]
[Result "0-1"]
[Round "10"]
[TimeControl "180+1"]
[Date "2021.06.01"]
[WhiteClock "0:00:01"]
[BlackClock "0:00:11"]

1. Nf3 {[%clk 0:02:52]}  b5 {[%clk 0:02:58]} 2. e4 {[%clk 0:02:47]}  Bb7 {[%clk 0:02:58]} 3. Qe2 {[%clk 0:02:37]}  e6 {[%clk 0:02:49]} 4. g3 {[%clk 0:02:30]}  b4 {[%clk 0:02:47]} 5. Bg2 {[%clk 0:02:28]}  c5 {[%clk 0:02:44]} 6. O-O {[%clk 0:02:27]}  Nc6 {[%clk 0:02:44]} 7. d3 {[%clk 0:02:22]}  d6 {[%clk 0:02:40]} 8. Nbd2 {[%clk 0:02:20]}  Nge7 {[%clk 0:02:36]} 9. Nc4 {[%clk 0:02:18]}  Nc8 {[%clk 0:02:34]} 10. a3 {[%clk 0:01:57]}  Be7 {[%clk 0:02:22]} 11. axb4 {[%clk 0:01:56]}  cxb4 {[%clk 0:02:23]} 12. d4 {[%clk 0:01:46]}  d5 {[%clk 0:02:13]} 13. exd5 {[%clk 0:01:44]}  Qxd5 {[%clk 0:02:11]} 14. Ne3 {[%clk 0:01:36]}  Qd7 {[%clk 0:02:06]} 15. Rd1 {[%clk 0:01:00]}  Nb6 {[%clk 0:01:45]} 16. Ne5 {[%clk 0:00:59]}  Nxe5 {[%clk 0:01:44]} 17. dxe5 {[%clk 0:00:59]}  Qc7 {[%clk 0:01:44]} 18. Qb5+ {[%clk 0:00:58]}  Kf8 {[%clk 0:01:44]} 19. Bxb7 {[%clk 0:00:54]}  Qxb7 {[%clk 0:01:45]} 20. Nc4 {[%clk 0:00:54]}  Qf3 {[%clk 0:01:36]} 21. Rd3 {[%clk 0:00:51]}  Qe4 {[%clk 0:01:17]} 22. Nxb6 {[%clk 0:00:48]}  axb6 {[%clk 0:01:18]} 23. Rxa8+ {[%clk 0:00:46]}  Qxa8 {[%clk 0:01:19]} 24. Qxb6 {[%clk 0:00:40]}  g5 {[%clk 0:01:18]} 25. Rd7 {[%clk 0:00:23]}  Qa1 {[%clk 0:01:14]} 26. Qe3 {[%clk 0:00:17]}  h5 {[%clk 0:01:13]} 27. Kg2 {[%clk 0:00:11]}  h4 {[%clk 0:01:08]} 28. gxh4 {[%clk 0:00:04]}  Qa8+ {[%clk 0:00:55]} 29. Qf3 {[%clk 0:00:04]}  Qxf3+ {[%clk 0:00:46]} 30. Kxf3 {[%clk 0:00:04]}  g4+ {[%clk 0:00:38]} 31. Kg2 {[%clk 0:00:02]}  Bxh4 {[%clk 0:00:37]} 32. Bf4 {[%clk 0:00:02]}  Kg7 {[%clk 0:00:36]} 33. Rb7 {[%clk 0:00:02]}  Rc8 {[%clk 0:00:35]} 34. Rxb4 {[%clk 0:00:02]}  Be7 {[%clk 0:00:33]} 35. Rb7 {[%clk 0:00:01]}  Bf8 {[%clk 0:00:32]} 36. c3 {[%clk 0:00:02]}  Rc4 {[%clk 0:00:30]} 37. Kg3 {[%clk 0:00:02]}  Kg6 {[%clk 0:00:29]} 38. Kxg4 {[%clk 0:00:02]}  f5+ {[%clk 0:00:20]} 39. Kg3 {[%clk 0:00:02]}  Bc5 {[%clk 0:00:19]} 40. Rc7 {[%clk 0:00:01]}  Bxf2+ {[%clk 0:00:18]} 41. Kxf2 {[%clk 0:00:02]}  Rxc7 {[%clk 0:00:19]} 42. Ke3 {[%clk 0:00:02]}  Kh5 {[%clk 0:00:18]} 43. Kf3 {[%clk 0:00:02]}  Rd7 {[%clk 0:00:17]} 44. Be3 {[%clk 0:00:02]}  Rd3 {[%clk 0:00:15]} 45. Ke2 {[%clk 0:00:01]}  Rd5 {[%clk 0:00:16]} 46. Bd4 {[%clk 0:00:01]}  Kg4 {[%clk 0:00:16]} 47. b4 {[%clk 0:00:01]}  f4 {[%clk 0:00:16]} 48. Kf2 {[%clk 0:00:01]}  Rd8 {[%clk 0:00:15]} 49. h3+ {[%clk 0:00:01]}  Kf5 {[%clk 0:00:15]} 50. Kf3 {[%clk 0:00:01]}  Rg8 {[%clk 0:00:14]} 51. h4 {[%clk 0:00:01]}  Rg3+ {[%clk 0:00:14]} 52. Kf2 {[%clk 0:00:02]}  Ke4 {[%clk 0:00:15]} 53. b5 {[%clk 0:00:02]}  Rh3 {[%clk 0:00:14]} 54. b6 {[%clk 0:00:02]}  Rxh4 {[%clk 0:00:14]} 55. Kg2 {[%clk 0:00:02]}  Rg4+ {[%clk 0:00:12]} 56. Kf2 {[%clk 0:00:02]}  f3 {[%clk 0:00:12]} 57. Kf1 {[%clk 0:00:03]}  Rg2 {[%clk 0:00:11]} 58. Ke1 {[%clk 0:00:03]}  Rb2 {[%clk 0:00:11]} 59. Kf1 {[%clk 0:00:03]}  f2 {[%clk 0:00:11]} 60. Bxf2 {[%clk 0:00:01]}  Kf3 {[%clk 0:00:11]} 0-1


[Site "https://www.chess.com"]

[Event "Titled Tuesday Blitz June 1 2021"]
[White "Visakh N R"]
[Black "Kretov, Evgenij"]
[WhiteFideId "25012223"]
[BlackFideId "4167821"]
[WhiteElo "2428"]
[BlackElo "2381"]
[Result "1-0"]
[Round "10"]
[TimeControl "180+1"]
[Date "2021.06.01"]
[WhiteClock "0:00:34"]
[BlackClock "0:00:12"]

1. e4 {[%clk 0:03:00]}  c5 {[%clk 0:03:00]} 2. Nf3 {[%clk 0:03:01]}  Nc6 {[%clk 0:03:00]} 3. d4 {[%clk 0:02:59]}  cxd4 {[%clk 0:03:00]} 4. Nxd4 {[%clk 0:03:00]}  g6 {[%clk 0:03:01]} 5. c4 {[%clk 0:02:59]}  Nf6 {[%clk 0:03:00]} 6. Nc3 {[%clk 0:02:59]}  d6 {[%clk 0:03:01]} 7. Be2 {[%clk 0:02:58]}  Nxd4 {[%clk 0:03:01]} 8. Qxd4 {[%clk 0:02:57]}  Bg7 {[%clk 0:03:02]} 9. O-O {[%clk 0:02:58]}  O-O {[%clk 0:03:01]} 10. Qd3 {[%clk 0:02:58]}  Be6 {[%clk 0:03:01]} 11. Be3 {[%clk 0:02:57]}  Nd7 {[%clk 0:03:00]} 12. Qd2 {[%clk 0:02:39]}  Nc5 {[%clk 0:02:43]} 13. f3 {[%clk 0:02:35]}  Re8 {[%clk 0:02:33]} 14. Rfd1 {[%clk 0:02:32]}  Rc8 {[%clk 0:02:32]} 15. Rac1 {[%clk 0:02:31]}  Qa5 {[%clk 0:02:28]} 16. b3 {[%clk 0:02:25]}  a6 {[%clk 0:02:21]} 17. Nd5 {[%clk 0:02:21]}  Qxd2 {[%clk 0:02:20]} 18. Rxd2 {[%clk 0:02:21]}  Nd7 {[%clk 0:02:11]} 19. Rcd1 {[%clk 0:02:16]}  f5 {[%clk 0:02:09]} 20. exf5 {[%clk 0:02:09]}  gxf5 {[%clk 0:02:07]} 21. f4 {[%clk 0:02:10]}  Bf7 {[%clk 0:02:06]} 22. Bf3 {[%clk 0:02:10]}  Nc5 {[%clk 0:02:00]} 23. Nb6 {[%clk 0:02:06]}  Rb8 {[%clk 0:01:46]} 24. Bd5 {[%clk 0:01:46]}  Ne4 {[%clk 0:01:40]} 25. Bxe4 {[%clk 0:01:28]}  fxe4 {[%clk 0:01:40]} 26. g4 {[%clk 0:01:28]}  h5 {[%clk 0:01:29]} 27. h3 {[%clk 0:01:28]}  Rbd8 {[%clk 0:01:22]} 28. Kg2 {[%clk 0:01:23]}  Bf6 {[%clk 0:01:16]} 29. c5 {[%clk 0:01:16]}  Bc3 {[%clk 0:01:10]} 30. Rc2 {[%clk 0:01:15]}  Bb4 {[%clk 0:01:10]} 31. c6 {[%clk 0:01:12]}  bxc6 {[%clk 0:01:07]} 32. Rxc6 {[%clk 0:01:13]}  d5 {[%clk 0:01:03]} 33. g5 {[%clk 0:01:09]}  e6 {[%clk 0:00:50]} 34. Bd4 {[%clk 0:01:03]}  Bg6 {[%clk 0:00:47]} 35. Kg3 {[%clk 0:00:59]}  Bf5 {[%clk 0:00:36]} 36. Rdc1 {[%clk 0:00:49]}  Kf7 {[%clk 0:00:35]} 37. Bf6 {[%clk 0:00:47]}  Rb8 {[%clk 0:00:32]} 38. Rc7+ {[%clk 0:00:44]}  Kf8 {[%clk 0:00:27]} 39. Nd7+ {[%clk 0:00:44]}  Kg8 {[%clk 0:00:27]} 40. Nxb8 {[%clk 0:00:43]}  Rxb8 {[%clk 0:00:28]} 41. Rg7+ {[%clk 0:00:43]}  Kf8 {[%clk 0:00:28]} 42. Rcc7 {[%clk 0:00:40]}  e3 {[%clk 0:00:21]} 43. Kf3 {[%clk 0:00:38]}  Bxh3 {[%clk 0:00:16]} 44. Rcf7+ {[%clk 0:00:35]}  Ke8 {[%clk 0:00:16]} 45. g6 {[%clk 0:00:35]}  Bg4+ {[%clk 0:00:12]} 46. Kg2 {[%clk 0:00:34]} 1-0


[Site "https://www.chess.com"]

[Event "Titled Tuesday Blitz June 1 2021"]
[White "Von Buelow, Georg"]
[Black "Seul, Georg"]
[WhiteFideId "4620658"]
[BlackFideId "4601653"]
[WhiteElo "2268"]
[BlackElo "2332"]
[Result "1-0"]
[Round "10"]
[TimeControl "180+1"]
[Date "2021.06.01"]
[WhiteClock "0:00:35"]
[BlackClock "0:00:03"]

1. e4 {[%clk 0:03:00]}  e5 {[%clk 0:02:59]} 2. Nf3 {[%clk 0:02:58]}  Nc6 {[%clk 0:02:59]} 3. Bb5 {[%clk 0:02:58]}  a6 {[%clk 0:02:59]} 4. Ba4 {[%clk 0:02:57]}  Bc5 {[%clk 0:02:59]} 5. c3 {[%clk 0:02:50]}  Nge7 {[%clk 0:02:58]} 6. d4 {[%clk 0:02:36]}  exd4 {[%clk 0:02:58]} 7. cxd4 {[%clk 0:02:36]}  Bb4+ {[%clk 0:02:59]} 8. Bd2 {[%clk 0:02:34]}  Bxd2+ {[%clk 0:02:58]} 9. Qxd2 {[%clk 0:02:33]}  d5 {[%clk 0:02:57]} 10. exd5 {[%clk 0:02:31]}  Nxd5 {[%clk 0:02:57]} 11. O-O {[%clk 0:02:29]}  O-O {[%clk 0:02:57]} 12. Bxc6 {[%clk 0:02:24]}  bxc6 {[%clk 0:02:56]} 13. Nc3 {[%clk 0:02:22]}  Bf5 {[%clk 0:02:29]} 14. Rfe1 {[%clk 0:02:20]}  Qf6 {[%clk 0:02:23]} 15. Rac1 {[%clk 0:02:03]}  Rfe8 {[%clk 0:02:08]} 16. Nxd5 {[%clk 0:01:52]}  cxd5 {[%clk 0:01:55]} 17. Rxc7 {[%clk 0:01:49]}  Rxe1+ {[%clk 0:01:23]} 18. Qxe1 {[%clk 0:01:47]}  Be4 {[%clk 0:01:21]} 19. Ne5 {[%clk 0:01:38]}  Rf8 {[%clk 0:00:13]} 20. Qc3 {[%clk 0:01:29]}  Qg5 {[%clk 0:00:12]} 21. f3 {[%clk 0:01:21]}  f6 {[%clk 0:00:10]} 22. Nc6 {[%clk 0:01:04]}  Bg6 {[%clk 0:00:07]} 23. Ne7+ {[%clk 0:00:56]}  Kh8 {[%clk 0:00:07]} 24. Rc8 {[%clk 0:00:53]}  Re8 {[%clk 0:00:03]} 25. h4 {[%clk 0:00:35]} 1-0


[Site "https://www.chess.com"]

[Event "Titled Tuesday Blitz June 1 2021"]
[White "Wagner, Dennis"]
[Black "Kislov, Oleg"]
[WhiteFideId "24650684"]
[BlackFideId "13503774"]
[WhiteElo "2355"]
[BlackElo "2252"]
[Result "1-0"]
[Round "10"]
[TimeControl "180+1"]
[Date "2021.06.01"]
[WhiteClock "0:01:24"]
[BlackClock "0:00:15"]

1. e4 {[%clk 0:03:00]}  e6 {[%clk 0:02:58]} 2. d4 {[%clk 0:03:00]}  d5 {[%clk 0:02:57]} 3. Nc3 {[%clk 0:03:01]}  Nf6 {[%clk 0:02:57]} 4. e5 {[%clk 0:03:02]}  Nfd7 {[%clk 0:02:57]} 5. f4 {[%clk 0:03:02]}  c5 {[%clk 0:02:57]} 6. Nf3 {[%clk 0:03:03]}  Nc6 {[%clk 0:02:57]} 7. Be3 {[%clk 0:03:03]}  a6 {[%clk 0:02:56]} 8. Qd2 {[%clk 0:03:01]}  b5 {[%clk 0:02:55]} 9. a3 {[%clk 0:03:00]}  c4 {[%clk 0:02:52]} 10. g3 {[%clk 0:02:52]}  g6 {[%clk 0:02:43]} 11. h4 {[%clk 0:02:49]}  h5 {[%clk 0:02:36]} 12. Bh3 {[%clk 0:02:49]}  Be7 {[%clk 0:02:04]} 13. Bf2 {[%clk 0:02:48]}  Qb6 {[%clk 0:02:01]} 14. Nd1 {[%clk 0:02:43]}  a5 {[%clk 0:02:00]} 15. c3 {[%clk 0:02:37]}  Rb8 {[%clk 0:01:57]} 16. g4 {[%clk 0:02:33]}  hxg4 {[%clk 0:01:56]} 17. Bxg4 {[%clk 0:02:34]}  b4 {[%clk 0:01:54]} 18. axb4 {[%clk 0:02:34]}  axb4 {[%clk 0:01:54]} 19. h5 {[%clk 0:02:34]}  bxc3 {[%clk 0:01:50]} 20. bxc3 {[%clk 0:02:35]}  Na5 {[%clk 0:01:50]} 21. Ra2 {[%clk 0:02:22]}  Nb3 {[%clk 0:01:43]} 22. Qc2 {[%clk 0:02:21]}  Nf8 {[%clk 0:01:26]} 23. Bh4 {[%clk 0:02:10]}  Bxh4+ {[%clk 0:01:13]} 24. Rxh4 {[%clk 0:02:08]}  Qd8 {[%clk 0:01:01]} 25. Ra7 {[%clk 0:01:54]}  Rb7 {[%clk 0:00:58]} 26. Ra8 {[%clk 0:01:54]}  Qc7 {[%clk 0:00:50]} 27. hxg6 {[%clk 0:01:52]}  Nxg6 {[%clk 0:00:46]} 28. Rxh8+ {[%clk 0:01:43]}  Nxh8 {[%clk 0:00:46]} 29. Qh7 {[%clk 0:01:40]}  Ng6 {[%clk 0:00:46]} 30. Qg8+ {[%clk 0:01:26]}  Nf8 {[%clk 0:00:44]} 31. Bh5 {[%clk 0:01:27]}  Nc1 {[%clk 0:00:18]} 32. Bxf7+ {[%clk 0:01:25]}  Qxf7 {[%clk 0:00:16]} 33. Rxc8+ {[%clk 0:01:24]}  Ke7 {[%clk 0:00:16]} 34. Qg5+ {[%clk 0:01:23]}  Kd7 {[%clk 0:00:15]} 35. Qd8# {[%clk 0:01:24]} 1-0


[Site "https://www.chess.com"]